bitfinex/quotes_SOLUSD_20241001
["timestamp","ask_amount","ask_price","bid_price","bid_amount"]
[1727813003514,8.2627,145.23,145.19,20.6617]
[1727813003715,8.2622,145.24,145.19,28.9266]
[1727813003915,0.82157947,145.23,145.19,28.9266]
[1727813004123,8.2622,145.24,145.19,28.9266]
[1727813004342,8.2622,145.24,145.13,42.5007489]
[1727813004343,8.2634,145.22,145.17,8.2656]
[1727813004524,0.0397,145.27,145.16,20.6664]
[1727813004525,0.82157947,145.21,145.16,20.6664]
[1727813004726,8.2639,145.21,145.16,8.2666]
[1727813005030,0.82157947,145.2,145.16,8.2666]
[1727813005216,0.82157947,145.2,145.15,20.6673]
[1727813005425,0.82157947,145.24,145.15,20.6673]
[1727813005729,8.2645,145.2,145.15,28.9345]
[1727813006506,8.2652,145.19,145.15,28.9345]
[1727813006704,8.2645,145.2,145.15,28.9345]
[1727813006929,8.2645,145.2,145.16,8.2666]
[1727813007125,8.264,145.21,145.16,8.2666]
[1727813007346,0.82157947,145.2,145.13,1.1613489]
[1727813007912,8.2667,145.16,145.13,1.1613489]
[1727813008223,0.82157947,145.15,145.13,1.1613489]
[1727813008414,9.08927947,145.15,145.13,1.1613489]
[1727813008623,9.08937947,145.14,145.13,1.1613489]
[1727813008818,8.2678,145.14,145.13,1.1613489]
[1727813010029,9.08937947,145.14,145.13,1.1613489]
[1727813011034,8.2707,145.09,145.08,0.2193262]
[1727813011340,0.82157947,145.12,145.08,0.2193262]
[1727813011516,0.82157947,145.14,145.08,0.2193262]
[1727813011715,9.08937947,145.14,145.08,8.4905262]
[1727813011917,8.269,145.12,145.08,0.2193262]
[1727813012115,0.82157947,145.11,145.08,0.2193262]
[1727813012320,8.2688,145.13,145.08,8.4901262]
[1727813012539,0.82157947,145.12,145.08,0.2193262]
[1727813012832,8.2703,145.1,145.08,0.2193262]
[1727813013041,20.67,145.14,145.08,0.2193262]
[1727813013042,0.82157947,145.09,145.08,0.2193262]
[1727813013209,20.67,145.14,145.08,0.2193262]
[1727813013210,0.82157947,145.1,145.08,0.2193262]
[1727813013411,0.82157947,145.13,145.08,0.2193262]
[1727813013817,8.2696,145.11,145.08,0.2193262]
[1727813014023,9.09177947,145.1,145.08,0.2193262]
[1727813014228,0.82157947,145.09,145.08,0.2193262]
[1727813014431,0.82157947,145.1,145.08,0.2193262]
[1727813015150,8.2691,145.12,145.08,0.2193262]
[1727813015325,0.82157947,145.11,145.08,8.4905262]
[1727813015531,8.2677,145.15,145.08,20.8967262]
[1727813015732,14.7907,145.19,145.12,8.2688]
[1727813015733,0.82157947,145.14,145.12,8.2688]
[1727813015928,14.7907,145.19,145.08,0.2193262]
[1727813015929,0.82157947,145.16,145.11,8.2694]
[1727813016143,9.08837947,145.16,145.11,8.2694]
[1727813016637,9.08727947,145.18,145.13,8.2683]
[1727813016941,8.2667,145.16,145.11,8.2694]
[1727813017142,0.82157947,145.18,145.12,20.6717]
[1727813017362,9.08817947,145.17,145.12,8.2684]
[1727813017524,0.82157947,145.21,145.11,20.6736]
[1727813017726,8.2669,145.16,145.11,28.9427]
[1727813017929,0.82157947,145.15,145.08,41.5750262]
[1727813018141,0.82157947,145.21,145.1,20.6744]
[1727813018336,8.2663,145.17,145.12,8.2689]
[1727813018544,0.82157947,145.16,145.12,8.2689]
[1727813018730,6.3782,145.22,145.13,8.2682]
[1727813018731,8.2657,145.18,145.13,8.2682]
[1727813018935,0.82157947,145.17,145.14,8.2674]
[1727813019139,0.82157947,145.18,145.12,20.6717]
[1727813019349,8.2669,145.16,145.12,20.6717]
[1727813019652,0.82157947,145.15,145.11,8.2694]
[1727813019958,8.2689,145.13,145.08,0.2193262]
[1727813020132,41.3198,145.21,145.08,20.8973262]
[1727813020133,0.82157947,145.12,145.08,20.8973262]
[1727813020322,8.2691,145.12,145.08,0.2193262]
[1727813020525,8.2691,145.12,145.08,8.4905262]
[1727813021053,0.82157947,145.11,145.08,0.2193262]
[1727813021734,8.2696,145.11,145.08,0.2193262]
[1727813022427,8.2683,145.14,145.08,0.2193262]
[1727813022651,0.82157947,145.13,145.09,8.2701]
[1727813022849,8.2691,145.12,145.08,8.4904262]
[1727813023026,0.82157947,145.16,145.08,8.4904262]
[1727813023226,8.2692,145.12,145.08,0.2193262]
[1727813023441,0.82157947,145.11,145.08,0.2193262]
[1727813024339,0.82157947,145.11,145.08,8.4904262]
[1727813024744,8.2685,145.13,145.08,8.4904262]
[1727813025051,8.2707,145.09,145.08,0.2193262]
[1727813026135,0.82157947,145.12,145.08,0.2193262]
[1727813026458,8.2707,145.09,145.08,0.2193262]
[1727813027758,28.2707,145.09,145.08,0.2193262]
[1727813028059,20.0,145.09,145.0,5.0]
[1727813028236,8.2741,145.03,145.0,5.0]
[1727813028755,0.82157947,145.07,145.0,5.0]
[1727813028938,8.2737,145.04,145.0,13.2758]
[1727813029339,0.82157947,145.03,145.0,13.2758]
[1727813030446,9.09577947,145.03,145.0,5.0]
[1727813030646,8.2742,145.03,145.0,5.0]
[1727813030859,8.2737,145.04,145.0,5.0]
[1727813031040,8.273,145.05,145.0,5.0]
[1727813031238,0.82157947,145.04,145.0,5.0]
[1727813031535,8.2737,145.04,145.0,13.2756]
[1727813032170,0.82157947,145.07,145.0,5.0]
[1727813032662,8.2748,145.02,145.0,5.0]
[1727813033240,0.82157947,145.07,145.0,5.0]
[1727813033479,8.2736,145.04,145.0,13.2757]
[1727813033958,8.2728,145.06,145.0,27.0678279]
[1727813034261,8.272,145.07,145.03,8.2741]
[1727813034445,8.272,145.07,145.0,25.6887]
[1727813034642,8.272,145.07,145.03,8.274]
[1727813034860,8.2717,145.08,145.03,8.274]
[1727813035067,9.09347947,145.07,145.03,8.274]
[1727813035367,8.2719,145.07,145.03,8.274]
[1727813035660,8.272,145.07,145.02,28.9609]
[1727813036357,0.82157947,145.06,145.0,5.0]
[1727813036564,8.2733,145.05,145.0,5.0]
[1727813037242,8.2733,145.05,145.0,13.2757]
[1727813037441,0.82157947,145.04,145.0,5.0]
[1727813037643,9.47153978,145.11,145.0,5.0]
[1727813037644,20.6802,145.07,145.0,5.0]
[1727813037858,8.2748,145.02,145.0,5.0]
[1727813038563,8.2742,145.03,145.0,5.0]
[1727813040364,8.2752,145.01,145.0,5.0]
[1727813042267,0.82157947,145.04,145.0,5.0]
[1727813042468,57.92574526,145.13,145.0,19.6795]
[1727813042469,0.0397,145.01,145.0,19.6795]
[1727813042947,8.3516,145.16,145.05,20.6824]
[1727813043145,9.08887947,145.15,145.1,8.2696]
[1727813043375,2.0,145.25,145.11,7.95881374]
[1727813043376,0.82157947,145.19,145.11,7.95881374]
[1727813043560,0.82157947,145.24,145.12,1.3775825]
[1727813043758,9.08417947,145.24,145.17,8.2659]
[1727813043943,0.82157947,145.24,145.16,20.6663]
[1727813044365,8.2628,145.23,145.18,8.2654]
[1727813044571,29.65912878,145.3,145.2,8.2644]
[1727813044572,9.08307947,145.26,145.2,8.2644]
[1727813044772,8.2604,145.27,145.21,9.6408146]
[1727813044966,0.82157947,145.26,145.21,8.2637]
[1727813045161,0.82157947,145.26,145.2,8.2644]
[1727813045162,9.08257947,145.26,145.2,8.2644]
[1727813045451,0.82157947,145.25,145.21,8.2637]
[1727813045655,9.08317947,145.25,145.19,28.9263]
[1727813045877,0.82157947,145.24,145.15,20.6671]
[1727813046258,6.0147,145.3,145.19,8.2649]
[1727813046259,0.82157947,145.25,145.19,8.2649]
[1727813046453,0.82157947,145.28,145.19,8.2649]
[1727813046681,8.2604,145.27,145.2,8.2641]
[1727813046870,0.82157947,145.26,145.2,8.2641]
[1727813047262,8.2599,145.28,145.21,8.2637]
[1727813047468,0.82157947,145.29,145.23,8.2625]
[1727813047672,0.82157947,145.29,145.22,20.6577]
[1727813047978,20.6443,145.32,145.22,16.3322]
[1727813048180,8.2616,145.25,145.22,16.3322]
[1727813048564,0.82157947,145.31,145.22,16.3322]
[1727813048764,8.2611,145.26,145.22,16.3322]
[1727813048963,23.38186586,145.34,145.18,37.0352]
[1727813048964,0.82157947,145.25,145.18,37.0352]
[1727813049283,20.0,145.22,145.0,21.3725]
[1727813049473,20.0,145.2,145.03,30.0]
[1727813049657,20.0,145.16,145.03,30.0]
[1727813049863,0.82157947,145.15,145.02,62.27674171]
[1727813050060,20.6698,145.14,145.02,62.27674171]
[1727813050269,0.82157947,145.13,145.0,21.3725]
[1727813050484,8.2707,145.09,145.04,8.2735]
[1727813050660,8.2697,145.11,145.03,20.684]
[1727813050961,8.2697,145.11,145.06,20.6809]
[1727813051163,8.2706,145.1,145.04,8.2735]
[1727813051360,8.2706,145.1,145.0,62.7498]
[1727813051361,0.82157947,145.1,145.0,21.3725]
[1727813051564,20.6753,145.11,145.02,8.2746]
[1727813051763,0.82157947,145.1,145.01,20.6881]
[1727813051971,8.2718,145.07,145.01,28.963]
[1727813052159,0.82157947,145.1,145.01,20.6881]
[1727813052357,8.2712,145.09,145.03,8.2741]
[1727813052978,40.6696,145.15,145.0,21.3725]
[1727813053167,40.6696,145.15,145.03,20.6841]
[1727813053369,8.2702,145.1,145.04,8.273]
[1727813053565,8.2696,145.11,145.05,8.2728]
[1727813053772,8.2696,145.11,145.06,9.65062153]
[1727813054578,8.2701,145.1,145.05,8.2729]
[1727813054777,0.82157947,145.18,145.1,8.27]
[1727813054978,0.82157947,145.18,145.08,20.6771]
[1727813054979,0.82157947,145.18,145.08,62.27674171]
[1727813055184,20.6585,145.22,145.12,8.2689]
[1727813055380,8.2645,145.2,145.11,35.883]
[1727813055595,8.2645,145.2,145.14,8.2673]
[1727813056101,8.2645,145.2,145.15,8.2672]
[1727813056266,8.2685,145.13,145.11,15.2093]
[1727813056473,8.2668,145.16,145.11,23.4788]
[1727813057163,0.82157947,145.18,145.11,35.8822]
[1727813057364,8.2662,145.17,145.12,8.269]
[1727813057566,8.2656,145.18,145.13,8.2683]
[1727813057773,0.82157947,145.22,145.11,35.8822]
[1727813058083,8.2651,145.19,145.14,8.2678]
[1727813058567,8.2647,145.2,145.15,9.64484607]
[1727813058761,8.2647,145.2,145.15,8.2672]
[1727813058974,8.2656,145.18,145.13,28.9384]
[1727813059387,0.82157947,145.22,145.13,20.6701]
[1727813059588,8.2645,145.2,145.15,8.2672]
[1727813060483,8.2658,145.18,145.13,28.938]
[1727813060792,8.265,145.19,145.14,8.2678]
[1727813060968,0.82157947,145.22,145.13,20.6701]
[1727813060969,8.2645,145.2,145.15,8.2672]
[1727813061164,0.82157947,145.22,145.13,20.6701]
[1727813061165,8.2652,145.19,145.13,28.938]
[1727813061383,8.2652,145.19,145.14,8.2675]
[1727813061578,0.82157947,145.18,145.06,23.4707]
[1727813061770,8.2685,145.13,145.08,8.2712]
[1727813063075,22.73,145.21,145.06,15.1989]
[1727813063274,20.0,145.18,145.06,15.1989]
[1727813063489,8.271,145.09,145.04,28.9565]
[1727813063708,8.271,145.09,145.04,20.6834]
[1727813063867,8.271,145.09,145.05,8.2729]
[1727813064471,8.271,145.09,145.04,28.9569]
[1727813064782,8.2703,145.1,145.05,9.65140271]
[1727813065090,8.2696,145.11,145.06,8.2723]
[1727813065291,8.2714,145.08,145.04,28.9569]
[1727813065593,8.2714,145.08,145.04,20.6834]
[1727813065762,8.272,145.07,145.02,24.0364]
[1727813066091,8.2717,145.08,145.03,8.2739]
[1727813067282,8.2708,145.09,145.04,8.2733]
[1727813067463,41.3399,145.14,145.02,15.7618]
[1727813067464,0.82157947,145.08,145.02,15.7618]
[1727813067666,8.2729,145.06,145.02,15.7618]
[1727813067897,8.2719,145.07,145.03,8.2741]
[1727813068068,8.2714,145.08,145.03,8.2741]
[1727813068631,8.2719,145.07,145.02,24.0364]
[1727813068775,8.2714,145.08,145.03,8.274]
[1727813069173,8.2714,145.08,145.02,36.4479]
[1727813069376,8.2705,145.1,145.05,8.2729]
[1727813069571,0.82157947,145.09,145.02,15.7618]
[1727813069899,8.2718,145.07,145.02,24.036]
[1727813071791,0.82157947,145.13,145.03,15.8393]
[1727813071995,0.82157947,145.13,145.08,8.2712]
[1727813071996,8.2686,145.13,145.08,8.2712]
[1727813072287,8.2686,145.13,145.09,1.37817777]
[1727813072472,0.82157947,145.15,145.06,8.2724]
[1727813072473,8.2695,145.11,145.06,8.2724]
[1727813072675,8.2704,145.1,145.06,1.37831293]
[1727813072974,8.2704,145.1,145.06,9.65061293]
[1727813073170,21.49047947,145.15,145.03,15.8393]
[1727813073388,0.82157947,145.15,145.07,20.6786]
[1727813073889,0.82157947,145.15,145.1,8.2699]
[1727813074082,0.82157947,145.19,145.11,9.64744378]
[1727813074277,0.82157947,145.19,145.11,1.37804378]
[1727813074491,0.82157947,145.19,145.04,79.77586498]
[1727813074689,0.82157947,145.19,145.06,28.9525]
[1727813074892,0.82157947,145.19,145.07,1.37838567]
[1727813075079,0.82157947,145.19,145.06,20.6801]
[1727813075276,41.55157947,145.19,145.06,22.05857066]
[1727813075493,23.776884,145.18,145.06,20.6801]
[1727813075708,20.82157947,145.17,145.07,9.6499125]
[1727813076086,20.82157947,145.17,145.06,20.6801]
[1727813076301,0.82157947,145.17,145.08,8.2712]
[1727813076609,0.82157947,145.17,145.09,8.2702]
[1727813076902,0.82157947,145.16,145.07,8.2718]
[1727813077719,21.49017947,145.15,145.08,8.2712]
[1727813077891,8.2691,145.12,145.08,8.2712]
[1727813078115,8.2683,145.14,145.09,9.64844209]
[1727813078299,8.2683,145.14,145.09,1.37824209]
[1727813078588,20.6642,145.18,145.08,1.37804246]
[1727813078589,0.82157947,145.13,145.08,1.37804246]
[1727813078797,8.2694,145.12,145.08,1.37804246]
[1727813078996,8.2695,145.11,145.08,1.37804246]
[1727813079386,0.82157947,145.15,145.08,9.64894246]
[1727813079587,8.2688,145.13,145.08,8.2709]
[1727813079784,8.268,145.14,145.09,22.05449343]
[1727813080095,8.268,145.14,145.09,20.6763]
[1727813080515,8.268,145.14,145.1,8.27]
[1727813080694,0.82157947,145.13,145.06,20.6802]
[1727813080897,0.82157947,145.13,145.07,1.37827252]
[1727813081089,0.82157947,145.13,145.07,1.37840361]
[1727813081090,8.2706,145.1,145.07,1.37840361]
[1727813081311,0.82157947,145.13,145.07,1.37840361]
[1727813081491,0.82157947,145.14,145.06,20.6802]
[1727813081892,0.82157947,145.14,145.03,15.8393]
[1727813081893,8.2686,145.13,145.08,20.6776]
[1727813082095,8.2686,145.13,145.09,1.37815852]
[1727813082298,8.2683,145.14,145.09,8.2705]
[1727813083611,0.82157947,145.17,145.1,8.2696]
[1727813083612,8.2675,145.15,145.1,8.2696]
[1727813083827,8.269,145.12,145.08,28.9487]
[1727813084016,8.2701,145.1,145.06,8.2722]
[1727813084396,8.2702,145.1,145.07,1.37829695]
[1727813084596,8.2697,145.11,145.07,9.65009695]
[1727813084990,0.82157947,145.15,145.06,1.37827379]
[1727813085203,20.6728,145.12,145.06,1.37827379]
[1727813085513,8.2707,145.09,145.06,1.37827379]
[1727813086098,8.2703,145.1,145.06,1.37827379]
[1727813086306,0.82157947,145.11,145.06,1.37827379]
[1727813086947,8.2711,145.09,145.05,9.65132507]
[1727813088119,0.82157947,145.11,145.05,1.37842507]
[1727813088426,0.82157947,145.11,145.05,9.65140528]
[1727813088427,8.2709,145.09,145.05,9.65140528]
[1727813088601,0.82157947,145.11,145.05,9.65140528]
[1727813088602,0.82157947,145.11,145.05,1.37850528]
[1727813088801,0.82157947,145.14,145.05,1.37850528]
[1727813089007,8.2695,145.12,145.08,8.2709]
[1727813090021,0.82157947,145.14,145.03,41.3681]
[1727813090212,8.2699,145.11,145.07,8.2714]
[1727813090610,8.2691,145.12,145.08,8.2712]
[1727813091605,20.6699,145.14,145.06,20.68]
[1727813091823,0.82157947,145.13,145.06,20.68]
[1727813092132,8.2705,145.1,145.06,28.9522]
[1727813092418,20.6727,145.12,145.03,20.6841]
[1727813092619,0.82157947,145.11,145.05,8.2726]
[1727813092825,8.2708,145.09,145.04,1.37832034]
[1727813093030,8.2708,145.09,145.05,28.9551]
[1727813093208,8.2708,145.09,145.06,1.3784676]
[1727813094133,8.2708,145.09,145.05,28.955]
[1727813094134,8.271,145.09,145.05,28.955]
[1727813094512,8.271,145.09,145.06,1.37846914]
[1727813094717,8.271,145.09,145.05,28.955]
[1727813094910,8.2705,145.1,145.06,8.2724]
[1727813095324,0.82157947,145.12,145.04,8.2735]
[1727813095325,8.2715,145.08,145.04,8.2735]
[1727813096512,8.2715,145.08,145.05,1.37851798]
[1727813096924,8.2715,145.08,145.04,8.2735]
[1727813097325,8.2715,145.08,145.05,8.273]
[1727813097830,8.2706,145.1,145.06,8.2722]
[1727813098031,8.2706,145.1,145.07,1.37834243]
[1727813099553,8.2707,145.09,145.07,1.37834243]
[1727813099834,8.2707,145.09,145.05,9.65125012]
[1727813100213,20.6741,145.11,145.01,23.776884]
[1727813100415,8.2719,145.07,145.04,8.2735]
[1727813100643,8.2713,145.08,145.05,1.37842794]
[1727813100829,31.48812023,145.81,145.04,38.41076498]
[1727813100830,0.82157947,145.15,145.04,38.41076498]
[1727813101010,8.2684,145.14,145.1,8.2701]
[1727813101212,27.54427947,145.2,145.11,20.6729]
[1727813101428,8.2666,145.17,145.12,8.2686]
[1727813101751,8.2671,145.16,145.11,28.9424]
[1727813101940,8.2671,145.16,145.11,20.6729]
[1727813102124,8.2671,145.16,145.12,8.2689]
[1727813102436,8.268,145.14,145.08,20.6774]
[1727813102638,8.2689,145.13,145.09,8.2706]
[1727813103116,8.2669,145.16,145.1,20.6746]
[1727813103352,6.0607,145.2,145.1,20.6746]
[1727813103353,8.2677,145.15,145.1,20.6746]
[1727813103643,8.2677,145.15,145.1,28.9446]
[1727813104641,0.82157947,145.19,145.1,20.6746]
[1727813104874,8.2679,145.14,145.09,8.2706]
[1727813105054,8.2679,145.14,145.07,20.6791]
[1727813105362,8.2701,145.1,145.06,8.2724]
[1727813105559,8.2712,145.08,145.04,20.6837]
[1727813105857,0.82157947,145.12,145.05,1.37847444]
[1727813106050,8.2703,145.1,145.05,9.65097444]
[1727813107021,0.82157947,145.18,145.14,8.2675]
[1727813107227,8.2663,145.17,145.13,28.9386]
[1727813107451,0.82157947,145.2,145.15,8.2668]
[1727813107452,8.2649,145.2,145.15,8.2668]
[1727813108742,8.265,145.19,145.16,1.37738641]
[1727813109634,8.265,145.19,145.17,1.377494]
[1727813109834,8.2656,145.18,145.14,8.2677]
[1727813110318,8.2656,145.18,145.15,1.37751537]
[1727813110724,8.265,145.19,145.15,1.37751537]
[1727813111638,0.82157947,145.22,145.15,1.37751537]
[1727813111940,8.2661,145.17,145.13,28.9386]
[1727813112826,8.2661,145.17,145.13,20.6703]
[1727813113440,0.82157947,145.2,145.12,8.2685]
[1727813113634,0.82157947,145.2,145.1,20.6745]
[1727813113936,8.2661,145.17,145.13,8.2684]
[1727813114523,8.2661,145.17,145.12,28.9409]
[1727813114922,0.82157947,145.16,145.04,6.2529]
[1727813115234,8.2685,145.13,145.08,8.2712]
[1727813115612,0.82157947,145.16,145.08,8.2712]
[1727813115613,8.269,145.12,145.08,8.2712]
[1727813115839,8.2686,145.13,145.09,8.2705]
[1727813116244,8.2679,145.14,145.1,8.2701]
[1727813116938,8.2685,145.13,145.11,1.37799593]
[1727813117119,8.2685,145.13,145.09,28.947]
[1727813117730,8.268,145.14,145.1,8.27]
[1727813119142,8.2703,145.1,145.06,28.9528]
[1727813119543,0.82157947,145.19,145.06,20.6806]
[1727813119744,8.2683,145.14,145.09,8.2702]
[1727813120041,8.2686,145.13,145.09,8.2702]
[1727813120930,8.268,145.14,145.09,8.2702]
[1727813122040,0.82157947,145.22,145.14,6.4072]
[1727813122250,8.2628,145.23,145.17,8.2656]
[1727813122426,8.2628,145.23,145.18,9.64274153]
[1727813122621,8.2628,145.23,145.18,8.2655]
[1727813122827,0.82157947,145.26,145.2,8.2643]
[1727813123160,8.2627,145.23,145.18,20.6629]
[1727813123540,0.82157947,145.26,145.19,9.64209988]
[1727813123728,0.82157947,145.26,145.18,20.6629]
[1727813123729,8.2634,145.22,145.18,20.6629]
[1727813124033,0.82157947,145.26,145.18,20.6629]
[1727813124034,8.2628,145.23,145.18,8.2655]
[1727813124949,0.82157947,145.26,145.19,20.6616]
[1727813125156,9.08297947,145.26,145.21,8.2638]
[1727813125324,8.2614,145.26,145.21,8.2638]
[1727813125528,8.2614,145.26,145.22,8.2632]
[1727813125739,8.2616,145.25,145.21,8.2638]
[1727813126445,0.82157947,145.24,145.18,15.0655]
[1727813126627,8.2635,145.22,145.18,15.0655]
[1727813126950,8.2628,145.23,145.18,23.3308]
[1727813127156,0.82157947,145.22,145.16,20.6662]
[1727813127448,8.2645,145.2,145.15,8.2672]
[1727813127622,8.265,145.19,145.15,8.2672]
[1727813128024,0.82157947,145.24,145.16,8.2662]
[1727813128228,8.2642,145.21,145.16,8.2662]
[1727813129339,41.3027,145.27,145.15,20.6672]
[1727813129340,8.2654,145.19,145.15,20.6672]
[1727813130134,8.2654,145.19,145.15,28.9344]
[1727813130451,8.2661,145.17,145.13,8.2683]
[1727813130681,8.2677,145.15,145.1,23.8712]
[1727813130954,8.268,145.14,145.1,23.8714]
[1727813132033,62.80667947,145.2,145.11,8.2695]
[1727813132237,21.48357947,145.2,145.1,15.6013]
[1727813132445,8.2662,145.17,145.13,8.2679]
[1727813132754,8.2662,145.17,145.14,1.3778109]
[1727813132958,8.266,145.18,145.14,1.3778109]
[1727813133273,6.4725,145.22,145.14,1.3778109]
[1727813133431,8.266,145.18,145.13,8.268]
[1727813133757,8.266,145.18,145.14,8.2676]
[1727813134124,8.266,145.18,145.13,8.2683]
[1727813134730,0.82157947,145.21,145.13,8.2683]
[1727813134731,8.2661,145.17,145.13,8.2683]
[1727813134959,20.6617,145.2,145.1,15.6013]
[1727813135165,8.2674,145.15,145.1,23.8712]
[1727813135455,8.2668,145.16,145.11,8.2695]
[1727813136461,8.2668,145.16,145.12,8.2689]
[1727813136658,8.2681,145.14,145.1,8.2696]
[1727813136955,0.82157947,145.17,145.1,8.2696]
[1727813137156,8.2669,145.16,145.11,8.2695]
[1727813137330,8.2669,145.16,145.12,8.2688]
[1727813137665,8.2694,145.12,145.08,28.9482]
[1727813137959,8.2685,145.13,145.09,8.2707]
[1727813138646,0.82157947,145.15,145.06,1.37811781]
[1727813138844,8.2703,145.1,145.06,8.2723]
[1727813139058,0.82157947,145.14,145.07,8.2718]
[1727813139059,8.2697,145.11,145.07,8.2718]
[1727813139650,8.2706,145.1,145.05,28.9546]
[1727813139845,8.271,145.09,145.05,28.9546]
[1727813140248,8.2714,145.08,145.04,8.2734]
[1727813140458,20.6732,145.12,145.02,38.31353216]
[1727813140758,0.82157947,145.14,145.02,38.31353216]
[1727813140759,8.2703,145.1,145.06,8.272]
[1727813140962,8.2703,145.1,145.07,1.3783671]
[1727813141345,0.82157947,145.14,145.03,41.3685]
[1727813141551,0.82157947,145.16,145.04,23.776884]
[1727813141752,8.2688,145.13,145.08,20.6779]
[1727813141953,8.2688,145.13,145.09,8.2705]
[1727813142851,8.269,145.12,145.08,28.9491]
[1727813143964,8.2707,145.1,145.06,8.2723]
[1727813144262,20.6701,145.14,145.07,8.2715]
[1727813144263,8.2696,145.11,145.07,8.2715]
[1727813144655,0.82157947,145.13,145.07,8.2715]
[1727813144863,8.2685,145.13,145.09,8.2706]
[1727813145163,0.82157947,145.16,145.1,1.37811973]
[1727813145365,8.2669,145.16,145.11,8.2694]
[1727813145683,8.2669,145.16,145.12,9.64680145]
[1727813145857,8.2679,145.14,145.11,20.6736]
[1727813146548,0.82157947,145.17,145.11,20.6736]
[1727813146744,8.2673,145.15,145.11,28.943]
[1727813148045,8.268,145.14,145.11,20.6736]
[1727813150051,29.0124,145.21,145.11,20.6736]
[1727813150360,29.0124,145.21,145.13,8.2684]
[1727813150361,8.2663,145.17,145.13,8.2684]
[1727813150548,8.2663,145.17,145.14,1.37769496]
[1727813150747,6.1063,145.22,145.14,1.37769496]
[1727813150950,0.82157947,145.24,145.15,17.45609469]
[1727813151162,8.265,145.2,145.15,24.3458]
[1727813151471,8.2651,145.19,145.15,8.2672]
[1727813152971,8.2666,145.17,145.13,28.9387]
[1727813153195,0.82157947,145.2,145.12,8.2688]
[1727813153196,8.267,145.16,145.12,8.2688]
[1727813153345,8.2663,145.17,145.13,8.2684]
[1727813153970,8.2674,145.15,145.11,24.3482]
[1727813154269,0.82157947,145.2,145.07,20.6784]
[1727813154270,0.82157947,145.14,145.07,20.6784]
[1727813154448,8.27,145.11,145.07,20.6784]
[1727813155577,8.269,145.12,145.08,8.2711]
[1727813155756,8.269,145.12,145.06,22.926]
[1727813155757,8.2683,145.14,145.09,20.6762]
[1727813155958,8.2685,145.13,145.09,20.6762]
[1727813156263,6.4234,145.17,145.06,37.298]
[1727813156264,8.2705,145.1,145.06,37.298]
[1727813156466,8.2705,145.1,145.06,38.67643957]
[1727813156782,8.2712,145.09,145.06,16.6177]
[1727813156977,20.6708,145.14,145.06,16.6177]
[1727813156978,8.2699,145.11,145.06,16.6177]
[1727813157157,8.2699,145.11,145.07,1.37844959]
[1727813158275,0.82157947,145.13,145.05,20.6818]
[1727813159467,8.2703,145.1,145.05,28.9546]
[1727813160069,8.2703,145.1,145.05,28.4546]
[1727813160558,8.2703,145.1,145.05,20.1818]
[1727813160758,0.82157947,145.16,145.07,20.6789]
[1727813160959,0.82157947,145.16,145.06,1.37833544]
[1727813160960,0.82157947,145.16,145.04,48.5476937]
[1727813161265,8.27,145.11,145.04,48.5476937]
[1727813161597,8.2704,145.1,145.06,28.9523]
[1727813162356,8.2711,145.09,145.03,20.6846]
[1727813162679,20.6718,145.13,145.02,6.3224]
[1727813162680,8.2702,145.1,145.06,8.2724]
[1727813162986,8.2702,145.1,145.07,1.37843757]
[1727813163304,21.48947947,145.16,145.07,22.05743757]
[1727813163581,0.82157947,145.16,145.08,16.138]
[1727813163764,8.2679,145.14,145.1,8.2699]
[1727813163964,8.2674,145.15,145.11,1.3779744]
[1727813164158,8.2674,145.15,145.1,8.2699]
[1727813164482,8.2679,145.14,145.1,8.2699]
[1727813164786,8.2662,145.17,145.13,8.2683]
[1727813165000,20.0,145.2,145.08,16.138]
[1727813165283,0.82157947,145.19,145.08,16.138]
[1727813165472,20.669,145.15,145.03,15.8228]